fUST/lending_fUST_20240409
["ID","MTS","AMOUNT","RATE_DAILY","PERIOD"]
[321917993,1712620150874,-5634.27439425,0.000299,2]
[321917994,1712620150894,-301.0,0.0003,2]
[321917995,1712620150915,-587.0,0.00030857,2]
[321917996,1712620150934,-162.42785515,0.00031226,2]
[321917997,1712620150955,-236.36058732,0.00031354,5]
[321917998,1712620150975,-2000.0,0.000315,2]
[321917999,1712620152548,524.59337771,0.00024998,2]
[321918000,1712620152980,323.30318138,0.00024998,2]
[321918001,1712620157122,-3411.52150579,0.00024998,2]
[321918002,1712620157142,-2000.0,0.0003151,2]
[321918003,1712620157236,-2000.0,0.0003152,2]
[321918004,1712620157258,-2000.0,0.0003153,2]
[321918005,1712620157279,-2000.0,0.0003154,2]
[321918006,1712620157300,-2000.0,0.0003155,2]
[321918007,1712620157321,-2000.0,0.0003156,2]
[321918008,1712620157347,-2000.0,0.0003157,2]
[321918009,1712620157370,-2000.0,0.0003158,2]
[321918010,1712620157391,-2000.0,0.0003159,2]
[321918011,1712620157412,-574.47362934,0.000316,2]
[321918012,1712620161150,-950.09714945,0.0002559,2]
[321918013,1712620168102,-300.01340815,0.0002559,2]
[321918016,1712620226941,577.50017062,0.00021752,5]
[321918058,1712620232417,-263.37349984,0.00022498,2]
[321918060,1712620232427,-156.74777884,0.00022499,2]
[321918062,1712620232436,-766.12326991,0.0002559,2]
[321918064,1712620232447,-624.67614803,0.00026902,2]
[321918065,1712620232456,-1131.68428374,0.00028244,2]
[321918066,1712620232466,-469.89408815,0.00028244,2]
[321918068,1712620232476,-356.20997815,0.00028245,2]
[321918070,1712620232486,-154.92253873,0.00028246,2]
[321918072,1712620232495,-154.92253873,0.00028246,2]
[321918083,1712620232586,-620.2338074,0.00028247,2]
[321918085,1712620232598,-5564.97168216,0.00029997,2]
[321918087,1712620232607,-3734.82468717,0.00029998,2]
[321918089,1712620232616,-542.15675357,0.00029999,2]
[321918091,1712620232626,-363.28222207,0.00029999,2]
[321918093,1712620232635,-208.69115691,0.00029999,2]
[321918095,1712620232645,-300.0,0.00029999,2]
[321918097,1712620232654,-45829.70162884,0.0003,120]
[321918301,1712620238381,-924.63411097,0.00026901,2]
[321918303,1712620238392,-84577.41033996,0.0003,120]
[321918304,1712620238403,-1425.52637066,0.000316,2]
[321918306,1712620238413,-2000.0,0.0003161,2]
[321918307,1712620238423,-2000.0,0.0003162,2]
[321918308,1712620238433,-2351.956538,0.0003163,2]
[321918309,1712620238444,-420.0,0.00032999,2]
[321918310,1712620238453,-262.684748,0.00033165,2]
[321918311,1712620238462,-236.36058732,0.00033303,6]
[321918313,1712620238471,-464.50545485,0.00034,4]
[321918314,1712620238481,-421.67098626,0.00034999,4]
[321918315,1712620238490,-154.92253873,0.00035,4]
[321918316,1712620238499,-668.64742128,0.00035,4]
[321918317,1712620238509,-595.96032213,0.00035,2]
[321918318,1712620238518,-150.92453773,0.00035143,2]
[321918319,1712620238528,-236.36058732,0.00035251,7]
[321918320,1712620238537,-36212.4183,0.00035618,30]
[321918321,1712620238546,-291.0,0.0003589,2]
[321918322,1712620238555,-291.0,0.00036,2]
[321918323,1712620238564,-587.0,0.00036299,2]
[321918324,1712620238574,-150.0,0.000369,2]
[321918325,1712620238583,-526.999337,0.00036986,120]
[321918326,1712620238593,-154.95976064,0.00037046,4]
[321918327,1712620238603,-236.36058732,0.000372,8]
[321918328,1712620238613,-291.0,0.00037397,2]
[321918329,1712620238622,-928.06769076,0.00038116,4]
[321918330,1712620238632,-474.68646441,0.00038214,4]
[321918331,1712620238641,-306.232174,0.00038414,2]
[321918332,1712620238650,-3925.88648522,0.00038604,4]
[321918333,1712620238659,-2000.0,0.00038892,2]
[321918334,1712620238668,-929.28,0.00038893,2]
[321918335,1712620238677,-929.28,0.00038893,2]
[321918336,1712620238687,-929.28,0.00038893,2]
[321918337,1712620238696,-929.28,0.00038893,2]
[321918338,1712620238705,-929.28,0.00038893,2]
[321918339,1712620238714,-929.28,0.00038893,2]
[321918341,1712620238723,-929.28,0.00038893,2]
[321918342,1712620238732,-929.28,0.00038893,2]
[321918343,1712620238741,-929.28,0.00038893,2]
[321918345,1712620238750,-929.28,0.00038893,2]
[321918346,1712620238759,-209527.40406987,0.00038893,3]
[321918347,1712620238768,-1483.79537958,0.00038894,4]
[321918348,1712620238778,-391.87829175,0.00038894,4]
[321918349,1712620238786,-1208.07747477,0.00038894,4]
[321918350,1712620238795,-342.65198227,0.00038894,4]
[321918351,1712620238804,-155.21795967,0.00038894,4]
[321918352,1712620238813,-201.70127512,0.00038894,4]
[321918353,1712620238824,-1140.66617803,0.00038894,4]
[321918354,1712620238834,-3384.18489331,0.00038894,4]
[321918355,1712620238844,-405.21213668,0.00038894,4]
[321918356,1712620238853,-1367.29488404,0.00038894,4]
[321918357,1712620238863,-1300.16892023,0.00038894,4]
[321918358,1712620238872,-2611.33892905,0.00038894,4]
[321918359,1712620238882,-30123.38829734,0.00038894,4]
[321918360,1712620238891,-610.00676164,0.00038894,4]
[321918361,1712620238900,-20901.85937521,0.00038894,4]
[321918362,1712620238909,-1482.7914286,0.00038894,4]
[321918363,1712620238918,-19679.00260757,0.00038894,4]
[321918364,1712620238927,-1834.82940292,0.00038896,2]
[321918365,1712620238936,-1834.8294029,0.00038924,2]
[321918366,1712620238945,-262.684748,0.00038933,2]
[321918367,1712620238955,-1834.8294029,0.00038952,2]
[321918368,1712620238964,-158.06271097,0.00038978,3]
[321918369,1712620238973,-1834.8294029,0.0003898,2]
[321918370,1712620238982,-2579.2553814,0.00038992,4]
[321918371,1712620239064,-539.58351361,0.00038992,4]
[321918372,1712620239074,-1954.37802725,0.00038992,4]
[321918373,1712620239085,-808.05197604,0.00038992,4]
[321918374,1712620239095,-436.359586,0.00038992,4]
[321918375,1712620239104,-1963.44133706,0.00038992,4]
[321918376,1712620239113,-466.13392239,0.00038992,4]
[321918377,1712620239123,-285.14752424,0.00038994,4]
[321918378,1712620239132,-309.11702662,0.00038994,4]
[321918379,1712620239141,-196.63843619,0.00038994,4]
[321918380,1712620239154,-56.01959915,0.00038994,4]
[321918381,1712620239163,-943.26617088,0.00038996,3]
[321918466,1712620243644,-14379.15572379,0.00038996,3]
[321918490,1712620244142,-304601.1434534,0.00038996,3]
[321918491,1712620244151,-418.77843612,0.00038996,2]
[321918492,1712620244160,-178.99187337,0.00038997,4]
[321918493,1712620244170,-3944.96179063,0.00038997,4]
[321918494,1712620244179,-397.6594946,0.00038998,4]
[321918495,1712620244188,-254.98970345,0.00038998,4]
[321918496,1712620244199,-155.01085076,0.00038998,4]
[321918497,1712620244209,-370.89005461,0.00038998,4]
[321918498,1712620244218,-469.35162803,0.00038998,4]
[321918499,1712620244227,-241.56762565,0.00038998,4]
[321918500,1712620244236,-207.93023383,0.00038998,4]
[321918501,1712620244246,-750.15457064,0.00038998,2]
[321918502,1712620244256,-155.78258228,0.00038998,4]
[321918503,1712620244265,-1055.98815553,0.00038998,4]
[321918504,1712620244275,-369.65061358,0.00038998,4]
[321918505,1712620244285,-155.14721322,0.00038998,2]
[321918506,1712620244294,-220.61622804,0.00038998,7]
[321918507,1712620244303,-355.05993481,0.00038998,2]
[321918508,1712620244313,-157.36359992,0.00038998,4]
[321918509,1712620244322,-215.74268103,0.00038998,4]
[321918510,1712620244332,-157.57356644,0.00038998,4]
[321918511,1712620244341,-1713.66889258,0.00038998,4]
[321918512,1712620244351,-207.9321651,0.00038998,4]
[321918513,1712620244361,-387.06507566,0.00038998,4]
[321918514,1712620244374,-400.13769079,0.00038998,4]
[321918515,1712620244385,-309.6903097,0.00038998,4]
[321918516,1712620244394,-431.50965048,0.00038999,4]
[321918517,1712620244404,-207.32182076,0.00039,4]
[321918518,1712620244413,-3441.87077781,0.00039,30]
[321918519,1712620244423,-104556.61261433,0.00039,30]
[321918520,1712620244432,-1834.8294029,0.00039008,2]
[321918521,1712620244441,-1834.8294029,0.00039036,2]
[321918522,1712620244452,-150.92453773,0.00039048,2]
[321918523,1712620244461,-150.0,0.00039055,2]
[321918524,1712620244470,-1834.8294029,0.00039064,2]
[321918525,1712620244479,-1834.8294029,0.00039092,2]
[321918526,1712620244488,-1834.8294029,0.0003912,2]
[321918527,1712620244497,-1834.8294029,0.00039148,2]
[321918528,1712620244507,-236.36058732,0.00039148,9]
[321918529,1712620244516,-585.0,0.000392,2]
[321918530,1712620244525,-340.0,0.00039218,35]
[321918531,1712620244534,-340.0,0.00039218,35]
[321918532,1712620244543,-340.0,0.00039228,35]
[321918533,1712620244552,-340.0,0.00039228,35]
[321918534,1712620244561,-340.0,0.00039228,35]
[321918535,1712620244570,-340.78,0.00039228,35]
[321918536,1712620244635,-340.0,0.00039238,35]
[321918537,1712620244655,-340.0,0.00039238,35]
[321918538,1712620244664,-340.0,0.00039238,35]
[321918539,1712620244674,-340.0,0.00039238,35]
[321918540,1712620244683,-50533.32275667,0.00039258,2]
[321918541,1712620244692,-300.0,0.00039258,2]
[321918542,1712620244702,-779.323223,0.00039258,2]
[321918543,1712620244711,-223.87811845,0.00039258,10]
[321918544,1712620244723,-285.76664396,0.00039258,2]
[321918545,1712620244735,-18471.73211814,0.00039258,2]
[321918546,1712620244745,-4077.54332051,0.00039258,2]
[321918547,1712620244755,-314.70982855,0.00039258,2]
[321918548,1712620244764,-280.43278487,0.00039258,2]
[321918549,1712620244773,-1025.09117122,0.00039258,2]
[321918550,1712620244782,-9915.86985646,0.00039258,2]
[321918551,1712620244792,-2701.23627928,0.00039258,2]
[321918552,1712620244801,-151.62077826,0.00039258,2]
[321918553,1712620244810,-165.90029737,0.00039258,5]
[321918554,1712620244819,-27840.53899414,0.00039258,2]
[321918555,1712620244828,-201.35079486,0.00039258,2]
[321918556,1712620244837,-28528.22847447,0.00039258,2]
[321918557,1712620244847,-429.63687225,0.00039258,2]
[321918558,1712620244857,-1001.02973741,0.00039258,2]
[321918559,1712620244867,-1970.07934686,0.00039258,2]
[321918560,1712620244876,-250.0,0.00039258,21]
[321918561,1712620244886,-227.57617154,0.00039258,5]
[321918562,1712620244895,-3218174.53986145,0.00039258,60]
[321918573,1712620475724,837.11286158,0.00021,2]
[321918575,1712620769282,19131.19494376,0.00021,2]
[321918576,1712620785269,547.80766381,0.00021,2]
[321918584,1712621237143,-300.0,0.0002736,2]
[321918585,1712621237164,-300.0,0.0002736,2]
[321918586,1712621237184,-154.93802479,0.0002736,2]
[321918587,1712621237206,-3136.8691598,0.00027361,2]
[321918588,1712621237226,-61.29025204,0.00027361,2]
[321918592,1712621245098,-162.04330719,0.00027261,2]
[321918593,1712621245120,-293.8804126,0.00027361,2]
[321918596,1712621357092,-263.37349984,0.00025258,2]
[321918597,1712621357112,-924.63411097,0.00025259,2]
[321918598,1712621357133,-356.20997815,0.0002526,2]
[321918599,1712621357154,-174.63803291,0.00025261,2]
[321918600,1712621357174,-2615.47741153,0.00027358,2]
[321918601,1712621357194,-407.59656825,0.00027395,2]
[321918602,1712621357214,-174.301356,0.00027396,2]
[321918603,1712621357234,-179.217507,0.00027397,2]
[321918604,1712621357255,-447.77895,0.00027524,2]
[321918605,1712621357275,-300.0,0.0002874,2]
[321918606,1712621357295,-300.0,0.0002874,2]
[321918607,1712621357316,-6452.06225263,0.00028741,2]
[321918738,1712621438546,-1028.78868364,0.0002874,2]
[321918739,1712621438555,-300.0,0.0002874,2]
[321918740,1712621438564,-300.0,0.0002874,2]
[321918741,1712621438574,-3420.12388481,0.00028741,2]
[321918786,1712621450313,-3873.31429465,0.00028741,2]
[321918787,1712621451084,-889.12561474,0.00028741,2]
[321918788,1712621451231,-0.00711182,0.00028741,2]
[321918789,1712621451330,-8105.66662203,0.00028741,2]
[321918790,1712621451339,-3106.16011959,0.00028742,2]
[321918791,1712621451349,-162.04330718,0.00028742,2]
[321918792,1712621451358,-309.0,0.0003,2]
[321918793,1712621451367,-286.16867642,0.0003003,4]
[321918794,1712621451376,-15649.95546864,0.00030132,2]
[321918805,1712622549147,-559.85564175,0.00027013,2]
[321918806,1712622552172,-127.17237165,0.00027013,2]
[321918807,1712622552194,-154.92253873,0.00027014,2]
[321918808,1712622552216,-154.92253873,0.00027014,2]
[321918809,1712622552237,-154.92253873,0.00027014,2]
[321918810,1712622552257,-185.58539861,0.00027015,2]
[321918811,1712622552279,-3136.8691598,0.00027015,2]
[321918812,1712622552301,-162.04330718,0.00027029,2]
[321918813,1712622552321,-436.469438,0.00027078,2]
[321918814,1712622552342,-179.517003,0.0002714,2]
[321918815,1712622552362,-300.0,0.00027395,2]
[321918816,1712622552383,-300.0,0.00027395,2]
[321918817,1712622552402,-176.564204,0.00027397,2]
[321918818,1712622552423,-180.128336,0.00027397,2]
[321918819,1712622552444,-5507.21796612,0.00027414,2]
[321918820,1712622555113,-335.92478334,0.00024913,2]
[321918846,1712622631866,-924.63411097,0.00027013,2]
[321918847,1712622631877,-231.950506,0.00027397,2]
[321918848,1712622631886,-300.0,0.00027413,2]
[321918849,1712622631895,-300.0,0.00027413,2]
[321918850,1712622631904,-19392.78203388,0.00027414,2]
[321918851,1712622631914,-521.64046095,0.00028641,2]
[321918852,1712622631923,-162.04330718,0.00029046,2]
[321918853,1712622631932,-420.0,0.00029624,2]
[321918854,1712622631941,-335.92478334,0.00029913,2]
[321918855,1712622631952,-175.63167,0.00030085,2]
[321918856,1712622631962,-3255.70238778,0.00030132,4]
[321918860,1712622637698,-2358.21680548,0.00030132,4]
[321918861,1712622637875,-6403.09666841,0.00030132,4]
[321918862,1712622637885,-420.0,0.00030154,2]
[321918863,1712622637894,-162.04330718,0.00031063,2]
[321918864,1712622637904,-2626.11431395,0.000315,2]
[321918865,1712622637915,-1199.31903305,0.000315,2]
[321918866,1712622637924,-190.72501436,0.00032012,4]
[321918867,1712622637933,-287.0,0.00032013,2]
[321918868,1712622637942,-620.18956085,0.0003215,2]
[321918869,1712622637952,-162.04330718,0.00033081,2]
[321918870,1712622637961,-179.217507,0.00033165,2]
[321918871,1712622637971,-176.564204,0.00033165,2]
[321918872,1712622637980,-180.128336,0.00033165,2]
[321918873,1712622637991,-231.950506,0.00033165,2]
[321918874,1712622638000,-587.0,0.00033169,2]
[321918875,1712622638010,-171.88641959,0.00033367,7]
[321918876,1712622638020,-604.25335397,0.00033367,7]
[321918877,1712622638030,-566.16675933,0.00033367,7]
[321918878,1712622638038,-420.80886636,0.00033367,7]
[321918879,1712622638048,-500.0,0.00033367,7]
[321918880,1712622638057,-268.55388161,0.00033367,7]
[321918881,1712622638066,-19380.29701217,0.00033368,4]
[321919117,1712622647453,-270.76180274,0.00028541,4]
[321919118,1712622647463,-182.03536098,0.00033269,2]
[321919119,1712622647473,-18997.10017931,0.00033368,4]
[321919120,1712622647482,-13256.01298099,0.00033369,10]
[321919121,1712622647491,-464.50545485,0.00034,4]
[321919122,1712622647500,-185.92909044,0.00035,30]
[321919123,1712622647509,-10241.19921587,0.00035,2]
[321919124,1712622647518,-13317.63064185,0.00035,7]
[321919125,1712622647529,-13260.81226286,0.00035,7]
[321919126,1712622647538,-668.64742128,0.00035,4]
[321919127,1712622647547,-595.96032213,0.00035096,2]
[321919128,1712622647556,-162.04330718,0.00035098,2]
[321919129,1712622647566,-738.23622862,0.000351,2]
[321919130,1712622647575,-7476.92932344,0.00035229,4]
[321919131,1712622647585,-423.22952845,0.00035332,4]
[321919132,1712622647594,-823.0,0.00036486,2]
[321919133,1712622647603,-154.92253873,0.00036984,4]
[321919134,1712622647612,-249.3469847,0.00036984,4]
[321919135,1712622647621,-154.92253873,0.00036985,4]
[321919136,1712622647632,-395.249502,0.00036986,120]
[321919137,1712622647642,-147.90604693,0.00037115,2]
[321919144,1712623746124,-276.96705132,0.00027363,2]
[321919145,1712623746144,-185.58539861,0.00027363,2]
[321919146,1712623746164,-242.6744587,0.00027364,2]
[321919147,1712623746185,-154.9690062,0.00027365,2]
[321919148,1712623746206,-1131.68428374,0.00027366,2]
[321919149,1712623746226,-562.64730962,0.00027367,2]
[321919150,1712623746246,-258.626013,0.00027397,2]
[321919151,1712623746267,-705.929527,0.00027501,2]
[321919152,1712623746288,-849.53366284,0.00027513,2]
[321919153,1712623761099,-458.6485608,0.00025413,2]
[321919154,1712623761118,-562.64730962,0.00027362,2]
[321919155,1712623761138,-3628.01311872,0.00027512,2]
[321919187,1712623832455,-300.0,0.00027511,2]
[321919189,1712623832465,-300.0,0.00027511,2]
[321919191,1712623832475,-19112.28666196,0.00027512,2]
[321919192,1712623832488,-24050.46633716,0.00027513,2]
[321919193,1712623832498,-154.9690062,0.00029541,2]
[321919194,1712623832507,-1131.68428374,0.00029542,2]
[321919195,1712623832518,-185.58539861,0.00029542,2]
[321919196,1712623832527,-257.28078826,0.00029543,4]
[321919197,1712623832537,-420.0,0.00029726,2]
[321919198,1712623832547,-158.0,0.0003,2]
[321919199,1712623832558,-420.0,0.00030262,2]
[321919200,1712623832569,-458.6485608,0.00030413,2]
[321919201,1712623832579,-465.8321358,0.00030819,4]
[321919202,1712623832590,-326.76921527,0.00030819,4]
[321919203,1712623832601,-500.0,0.0003082,2]
[321919204,1712623832610,-329.38023498,0.0003082,2]
[321919205,1712623832619,-242.64289685,0.0003082,2]
[321919206,1712623832628,-156.18719332,0.0003082,2]
[321919207,1712623832637,-155.21795967,0.0003082,4]
[321919208,1712623832646,-48112.0539537,0.00030821,4]
[321919222,1712623838152,-3025.6715016,0.00030821,4]
[321919425,1712623846135,-249.3469847,0.00030819,4]
[321919426,1712623846145,-422.97734778,0.0003082,2]
[321919427,1712623846154,-396.31673153,0.0003082,2]
[321919428,1712623846163,-537.98771713,0.0003082,2]
[321919429,1712623846174,-420.80886636,0.0003082,2]
[321919430,1712623846183,-171.88641959,0.0003082,2]
[321919431,1712623846192,-500.0,0.00030821,2]
[321919432,1712623846202,-4112.24665756,0.00030821,4]
[321919433,1712623846211,-309.76769358,0.00031383,4]
[321919434,1712623846220,-257.28078826,0.00031449,5]
[321919435,1712623846230,-258.626013,0.00033165,2]
[321919436,1712623846239,-587.0,0.00033288,2]
[321919437,1712623846249,-257.28078826,0.00033355,6]
[321919438,1712623846258,-464.50545485,0.00034,4]
[321919439,1712623846342,-154.9690062,0.00035,4]
[321919440,1712623846351,-668.64742128,0.00035,4]
[321919441,1712623846361,-595.96032213,0.00035,2]
[321919442,1712623846371,-257.28078826,0.00035261,7]
[321919443,1712623846381,-458.6485608,0.00035413,2]
[321919444,1712623846391,-823.0,0.00036617,2]
[321919445,1712623846400,-336.618808,0.00036986,120]
[321919446,1712623846409,-2000.0,0.000371,12]
[321919447,1712623846420,-3668.724027,0.0003711,12]
[321919448,1712623846429,-497.82885217,0.00037115,4]
[321919449,1712623846439,-257.28078826,0.00037166,8]
[321919450,1712623846448,-624.36279286,0.00037246,4]
[321919451,1712623846458,-318.0,0.00038005,2]
[321919452,1712623846467,-150.95471359,0.00038005,2]
[321919453,1712623846477,-2183.165497,0.000382,2]
[321919454,1712623846490,-150.0,0.00038217,2]
[321919455,1712623846499,-857.05459567,0.0003847,4]
[321919456,1712623846508,-2244.39772785,0.000386,15]
[321919457,1712623846517,-301.90942717,0.00038644,4]
[321919458,1712623846527,-158.07027714,0.00038865,3]
[321919459,1712623846536,-176.564204,0.00038933,2]
[321919460,1712623846545,-180.128336,0.00038933,2]
[321919461,1712623846554,-231.950506,0.00038933,2]
[321919462,1712623846563,-258.626013,0.00038933,2]
[321919463,1712623846572,-1000.0,0.0003898,2]
[321919464,1712623846581,-155.95837919,0.00038993,4]
[321919465,1712623846591,-336.53598691,0.00038993,4]
[321919466,1712623846600,-2542.09040248,0.00038995,4]
[321919467,1712623846609,-2000.0,0.0003905,2]
[321919468,1712623846618,-1575.24659203,0.0003905,2]
[321919469,1712623846626,-236.8329,0.00039062,2]
[321919470,1712623846636,-257.28078826,0.00039072,9]
[321919471,1712623846645,-585.0,0.000391,2]
[321919472,1712623846654,-306.0,0.0003913,2]
[321919473,1712623846663,-792.27303889,0.00039147,4]
[321919474,1712623846673,-2414.72,0.00039148,2]
[321919475,1712623846682,-2414.72,0.00039148,2]
[321919476,1712623846691,-2414.72,0.00039148,2]
[321919477,1712623846701,-2414.72,0.00039148,2]
[321919478,1712623846710,-2414.72,0.00039148,2]
[321919479,1712623846719,-2414.72,0.00039148,2]
[321919480,1712623846729,-2414.72,0.00039148,2]
[321919481,1712623846738,-2414.72,0.00039148,2]
[321919482,1712623846747,-2414.72,0.00039148,2]
[321919483,1712623846756,-2414.72,0.00039148,2]
[321919484,1712623846765,-281.22308285,0.00039149,15]
[321919485,1712623846774,-181.27600619,0.00039149,15]
[321919486,1712623846783,-169.8500278,0.00039149,15]
[321919487,1712623846792,-230.56616448,0.00039149,15]
[321919488,1712623846801,-14383.07383537,0.00039149,3]
[321919506,1712624826133,-185.58539861,0.00026335,2]
[321919507,1712624826153,-1485.26994661,0.00026335,2]
[321919508,1712624826174,-473.12701109,0.00026336,2]
[321919509,1712624826194,-271.8195425,0.00026336,2]
[321919510,1712624826214,-1307.14749885,0.00026337,2]
[321919511,1712624826237,-637.89349192,0.00026337,2]
[321919512,1712624826256,-207.18381603,0.00026338,2]
[321919513,1712624826276,-192.96186117,0.00026339,2]
[321919514,1712624826296,-2935.09161467,0.0002634,2]
[321919515,1712624826317,-300.0,0.0002634,2]
[321919516,1712624826340,-300.0,0.0002634,2]
[321919517,1712624826360,-6381.31181455,0.00026342,2]
[321919518,1712624829355,5000.0,0.00027499,120]
[321919519,1712624842513,2605.16,0.00027499,120]
[321919521,1712624962104,-390.83307649,0.00026359,2]
[321919522,1712624962128,-674.882111,0.0002636,2]
[321919523,1712624962151,-162.96798453,0.00026388,2]
[321919524,1712624962172,-300.0,0.00026487,2]
[321919525,1712624962194,-20956.77531474,0.00026488,2]
[321919526,1712624965095,-314.25475249,0.00025399,2]
[321919527,1712624965117,-3943.22468526,0.00026488,2]
[321919569,1712625032409,-412.08,0.00027034,9]
[321919615,1712625038522,-1155.95943727,0.00027034,9]
[321919616,1712625038740,-3431.96056273,0.00027034,9]
[321919617,1712625038749,-188.19613238,0.00027307,2]
[321919618,1712625038759,-196.544246,0.00027397,2]
[321919619,1712625038769,-161.167458,0.00027397,2]
[321919620,1712625038779,-500.0,0.00027499,60]
[321919621,1712625038787,-300.0,0.0002751,2]
[321919622,1712625038800,-6014.49245202,0.00027511,2]
[321919623,1712625038811,-309.88231421,0.00027511,2]
[321919632,1712625041933,-16415.92501445,0.00027511,2]
[321919633,1712625041944,-6403.09666841,0.00027512,2]
[321919634,1712625041954,-287.82282929,0.00027512,2]
[321919635,1712625041965,-162.96798447,0.00028194,2]
[321919636,1712625041975,-240.12376979,0.0002936,2]
[321919637,1712625041985,-162.96798447,0.00029999,2]
[321919638,1712625041995,-155.0,0.0003,2]
[321919639,1712625042005,-420.0,0.00030261,2]
[321919640,1712625042014,-314.25475249,0.00030399,2]
[321919641,1712625042026,-1957.63344562,0.00031,2]
[321919642,1712625042037,-258.19930844,0.00031318,4]
[321919643,1712625042047,-162.96798447,0.00031805,2]
[321919644,1712625042058,-184.822562,0.00031939,2]
[321919645,1712625042067,-190.72501436,0.00033164,4]
[321919646,1712625042077,-155.0,0.00033165,2]
[321919647,1712625042087,-196.544246,0.00033165,2]
[321919648,1712625042097,-587.0,0.00033287,2]
[321919649,1712625042107,-161.167458,0.00033486,2]
[321919650,1712625042117,-162.96798447,0.0003361,2]
[321919651,1712625042127,-249.3469847,0.00035232,4]
[321919652,1712625042137,-464.50545485,0.00035233,4]
[321919653,1712625042152,-156.34222761,0.00035234,4]
[321919654,1712625042162,-314.25475249,0.00035399,2]
[321919655,1712625042173,-162.96798447,0.00035416,2]
[321919656,1712625042184,-823.0,0.00036616,2]
[321919657,1712625042195,-252.464106,0.00036986,120]
[321919658,1712625042205,-162.96798447,0.00037221,2]
[321919659,1712625042216,-620.18956085,0.00037577,2]
[321919660,1712625042225,-438.32220749,0.00038342,4]
[321919661,1712625042234,-158.07027714,0.00038756,3]
[321919662,1712625042243,-196.544246,0.00038933,2]
[321919671,1712625042330,-449.77527494,0.00038999,15]
[321919673,1712625042340,-330.38237878,0.00038999,15]
[321919675,1712625042350,-579.45550867,0.00038999,15]
[321919677,1712625042360,-155.0,0.00039,2]
[321919679,1712625042370,-1486.18442318,0.00039,2]
[321919924,1712625045369,-5000.0,0.00027236,9]
[321919926,1712625045378,-1030.90946395,0.00039,2]
[321919932,1712625045429,-1046.37864175,0.00039,2]
[321920022,1712625046492,-463.61380504,0.00038999,15]
[321920024,1712625046502,-447.50729799,0.00038999,15]
[321920026,1712625046511,-3852.34949799,0.00039,2]
[321920862,1712625393845,-868.18863525,0.0002739,2]
[321920863,1712625393939,-154.98450155,0.00027391,2]
[321920864,1712625393964,-1086.90254792,0.00027391,2]
[321920865,1712625393989,-545.90247133,0.00027391,2]
[321920866,1712625394012,-192.96186117,0.00027392,2]
[321920867,1712625394034,-1307.14749885,0.00027392,2]
[321920868,1712625394056,-116.91248393,0.00027393,2]
[321920893,1712625989973,5000.0,0.000262,4]
[321920894,1712625997893,5000.0,0.000262,4]
[321920895,1712626006203,5000.0,0.000262,4]
[321920896,1712626014046,5000.0,0.000262,4]
[321920897,1712626022398,5000.0,0.000262,4]
[321920899,1712626030233,5000.0,0.000262,4]
[321920900,1712626038264,5000.0,0.000262,4]
[321920901,1712626039143,-162.96798447,0.00026455,2]
[321920902,1712626039164,-8.298829,0.00026554,2]
[321920903,1712626046642,5000.0,0.000262,4]
[321920904,1712626054746,5000.0,0.000262,4]
[321920905,1712626063140,5000.0,0.000262,4]
[321920906,1712626071190,5000.0,0.000262,4]
[321920907,1712626079070,5000.0,0.000262,4]
[321920908,1712626087158,5000.0,0.000262,4]
[321920909,1712626095550,5000.0,0.000262,4]
[321920910,1712626103593,5000.0,0.000262,4]
[321920912,1712626112153,5000.0,0.000262,4]
[321920913,1712626120794,5000.0,0.000262,4]
[321920914,1712626129804,5000.0,0.000262,4]
[321920915,1712626138456,5000.0,0.000262,4]
[321920916,1712626146923,5000.0,0.000262,4]
[321920917,1712626155125,-185.58539861,0.0002655,2]
[321920918,1712626155144,-151.0,0.00026551,2]
[321920919,1712626155164,-3136.8691598,0.00026551,2]
[321920920,1712626155184,-14481.47742146,0.00026551,2]
[321920921,1712626156165,5000.0,0.000262,7]
[321920922,1712626164013,3804.63105596,0.000262,7]
[321920923,1712626169074,-2579.2553814,0.0002655,2]